[Event "Masters Tournament (MTO)"]
[Site "Biel, Switzerland"]
[Date "2026.07.21"]
[Round "8.22"]
[White "Udelnov, Valentin"]
[Black "Iafelice, Vincenzo"]
[Result "0-1"]
[TimeControl "100+30+30sec/move"]
[WhiteTitle "-"]
[BlackTitle "-"]
[WhiteFideId "16265734"]
[BlackFideId "810541"]
[WhiteElo "2269"]
[BlackElo "2086"]

1. e4 {[%clk 01:40:58]} e5 {[%clk 01:40:54]} {[%emt 00:00:07]} 2. Nf3 {[%clk
01:41:25]} {[%emt 00:00:03]} Nc6 {[%clk 01:41:17]} {[%emt 00:00:07]} 3. Bc4
{[%clk 01:41:51]} {[%emt 00:00:05]} Nf6 {[%clk 01:41:40]} {[%emt 00:00:07]} 4.
d3 {[%clk 01:42:18]} {[%emt 00:00:02]} h6 {[%clk 01:41:56]} {[%emt 00:00:13]} 5.
O-O {[%clk 01:42:32]} {[%emt 00:00:16]} Bc5 {[%clk 01:42:13]} {[%emt 00:00:13]}
6. c3 {[%clk 01:42:43]} {[%emt 00:00:20]} d6 {[%clk 01:42:20]} {[%emt
00:00:23]} 7. Re1 {[%clk 01:42:52]} {[%emt 00:00:20]} a5 {[%clk 01:42:31]}
{[%emt 00:00:19]} 8. Be3 {[%clk 01:40:02]} {[%emt 00:03:21]} Bxe3 {[%clk
01:42:18]} {[%emt 00:00:43]} 9. Rxe3 {[%clk 01:40:26]} {[%emt 00:00:06]} O-O
{[%clk 01:41:54]} {[%emt 00:00:53]} 10. Nbd2 {[%clk 01:38:10]} {[%emt
00:02:46]} d5 {[%clk 01:29:38]} {[%emt 00:12:47]} 11. exd5 {[%clk 01:05:25]}
{[%emt 00:33:15]} Nxd5 {[%clk 01:29:59]} {[%emt 00:00:08]} 12. Bxd5 {[%clk
01:05:50]} {[%emt 00:00:05]} Qxd5 {[%clk 01:30:23]} {[%emt 00:00:06]} 13. Qe2
{[%clk 01:06:04]} {[%emt 00:00:16]} Bf5 {[%clk 01:05:31]} {[%emt 00:25:22]} 14.
Nc4 {[%clk 00:46:16]} {[%emt 00:20:18]} f6 {[%clk 00:53:32]} {[%emt 00:12:29]}
15. Rd1 {[%clk 00:46:30]} {[%emt 00:00:16]} Rad8 {[%clk 00:49:32]} {[%emt
00:04:30]} 16. Nh4 {[%clk 00:35:57]} {[%emt 00:11:03]} Bh7 {[%clk 00:45:32]}
{[%emt 00:04:30]} 17. Rg3 {[%clk 00:35:59]} {[%emt 00:00:28]} f5 {[%clk
00:35:13]} {[%emt 00:10:49]} 18. Ng6 {[%clk 00:26:51]} {[%emt 00:09:38]} Bxg6
{[%clk 00:23:30]} {[%emt 00:12:13]} 19. Rxg6 {[%clk 00:27:16]} {[%emt
00:00:05]} e4 {[%clk 00:19:34]} {[%emt 00:04:26]} 20. d4 {[%clk 00:25:24]}
{[%emt 00:02:22]} Qf7 {[%clk 00:17:44]} {[%emt 00:02:20]} 21. Rg3 {[%clk
00:24:10]} {[%emt 00:01:44]} Rde8 {[%clk 00:11:15]} {[%emt 00:06:59]} 22. Rh3
{[%clk 00:19:04]} {[%emt 00:05:36]} f4 {[%clk 00:09:10]} {[%emt 00:02:35]} 23.
b3 {[%clk 00:15:07]} {[%emt 00:04:28]} Re7 {[%clk 00:04:48]} {[%emt 00:04:52]}
24. Qh5 {[%clk 00:11:13]} {[%emt 00:04:23]} Qf6 {[%clk 00:04:45]} {[%emt
00:00:32]} 25. Qh4 {[%clk 00:09:00]} {[%emt 00:02:44]} Qxh4 {[%clk 00:04:52]}
{[%emt 00:00:23]} 26. Rxh4 {[%clk 00:09:24]} {[%emt 00:00:05]} Kh7 {[%clk
00:04:56]} {[%emt 00:00:26]} 27. g3 {[%clk 00:09:25]} {[%emt 00:00:29]} g5
{[%clk 00:04:59]} {[%emt 00:00:27]} 28. Rg4 {[%clk 00:08:48]} {[%emt 00:01:08]}
b5 {[%clk 00:03:58]} {[%emt 00:01:31]} 29. Ne5 {[%clk 00:04:37]} {[%emt
00:04:41]} Rxe5 {[%clk 00:03:22]} {[%emt 00:01:06]} 30. dxe5 {[%clk 00:05:03]}
{[%emt 00:00:04]} Nxe5 {[%clk 00:03:48]} {[%emt 00:00:04]} 31. h3 {[%clk
00:05:21]} {[%emt 00:00:12]} h5 {[%clk 00:03:27]} {[%emt 00:00:51]} 32. gxf4
{[%clk 00:05:36]} {[%emt 00:00:16]} Nf3+ {[%clk 00:03:46]} {[%emt 00:00:10]} 33.
Kg2 {[%clk 00:05:50]} {[%emt 00:00:15]} hxg4 {[%clk 00:04:08]} {[%emt
00:00:09]} 34. fxg5 {[%clk 00:02:02]} {[%emt 00:04:18]} gxh3+ {[%clk 00:04:22]}
{[%emt 00:00:16]} 35. Kxh3 {[%clk 00:02:28]} {[%emt 00:00:04]} Nxg5+ {[%clk
00:04:43]} {[%emt 00:00:08]} 36. Kg4 {[%clk 00:02:29]} {[%emt 00:00:30]} Kg6
{[%clk 00:04:49]} {[%emt 00:00:24]} 37. Rd5 {[%clk 00:02:34]} {[%emt 00:00:26]}
Ne6 {[%clk 00:04:17]} {[%emt 00:01:01]} 38. Rxb5 {[%emt 00:00:59]} Rf4+ {[%clk
00:04:16]} 39. Kg3 {[%clk 00:02:56]} {[%emt 00:00:10]} Rf5 {[%clk 00:04:34]}
{[%emt 00:00:10]} 40. Rb8 {[%clk 00:02:23]} {[%emt 00:01:05]} Rf3+ {[%clk
00:04:33]} {[%emt 00:00:30]} 41. Kg2 {[%clk 00:28:33]} {[%emt 00:04:20]} Rxc3
{[%clk 00:34:36]} {[%emt 00:00:28]} 42. Rg8+ {[%clk 00:26:27]} {[%emt
00:02:36]} Kf5 {[%clk 00:34:08]} {[%emt 00:00:57]} 43. Ra8 {[%clk 00:26:00]}
{[%emt 00:00:58]} Nf4+ {[%clk 00:31:55]} {[%emt 00:02:43]} 44. Kg1 {[%clk
00:25:43]} {[%emt 00:00:47]} Rc5 {[%clk 00:28:33]} {[%emt 00:03:51]} 45. Kh2
{[%clk 00:23:49]} {[%emt 00:02:25]} Kg4 {[%clk 00:27:58]} {[%emt 00:01:05]} 46.
a3 {[%clk 00:22:01]} {[%emt 00:02:18]} Kf3 {[%clk 00:27:31]} {[%emt 00:00:56]}
47. Rf8 {[%clk 00:22:23]} {[%emt 00:00:08]} Rc2 {[%clk 00:26:24]} {[%emt
00:01:37]} 48. Kg1 {[%clk 00:22:12]} {[%emt 00:00:41]} Rc1+ {[%clk 00:26:30]}
{[%emt 00:00:25]} 49. Kh2 {[%clk 00:22:35]} {[%emt 00:00:07]} Rf1 {[%clk
00:26:51]} {[%emt 00:00:09]} 50. b4 {[%clk 00:22:39]} {[%emt 00:00:26]} Rxf2+
{[%clk 00:27:13]} {[%emt 00:00:07]} 51. Kg1 {[%clk 00:23:07]} {[%emt 00:00:02]}
axb4 {[%clk 00:26:18]} {[%emt 00:01:26]} 52. axb4 {[%clk 00:23:30]} {[%emt
00:00:07]} e3 {[%clk 00:26:36]} {[%emt 00:00:12]} 53. b5 {[%emt 00:00:09]} Rg2+
{[%clk 00:26:47]} {[%emt 00:00:17]} 54. Kh1 {[%clk 00:24:10]} {[%emt 00:00:12]}
e2 {[%clk 00:26:49]} {[%emt 00:00:29]} 55. Re8 {[%clk 00:24:35]} {[%emt
00:00:06]} Rg6 {[%clk 00:24:24]} {[%emt 00:02:53]} 56. b6 {[%clk 00:24:45]}
{[%emt 00:00:20]} Re6 {[%clk 00:24:18]} {[%emt 00:00:36]} 57. Rxe6 {[%clk
00:24:59]} {[%emt 00:00:17]} Nxe6 {[%clk 00:24:46]} {[%emt 00:00:03]} 58. bxc7
{[%clk 00:25:21]} {[%emt 00:00:07]} e1=Q+ {[%clk 00:25:08]} {[%emt 00:00:07]}
59. Kh2 {[%clk 00:25:48]} {[%emt 00:00:04]} Qf2+ {[%clk 00:25:27]} {[%emt
00:00:11]} 60. Kh3 {[%clk 00:26:14]} {[%emt 00:00:03]} Qg3 {[%clk 00:25:48]}
{[%emt 00:00:10]} 0-1

[Event "Masters Tournament (MTO)"]
[Site "Biel, Switzerland"]
[Date "2026.07.21"]
[Round "8.23"]
[White "Schmidt, Florian Pascal"]
[Black "Matsumura, Cocoro"]
[Result "0-1"]
[TimeControl "100+30+30sec/move"]
[WhiteTitle "-"]
[BlackTitle "-"]
[WhiteFideId "16256840"]
[BlackFideId "36087114"]
[WhiteElo "2095"]
[BlackElo "2225"]

1. e4 {[%clk 01:40:58]} {[%emt 00:00:01]} c5 {[%clk 01:40:05]} {[%emt
00:00:55]} 2. Nf3 {[%clk 01:41:22]} {[%emt 00:00:06]} d6 {[%clk 01:40:30]}
{[%emt 00:00:05]} 3. d4 {[%clk 01:41:48]} {[%emt 00:00:04]} cxd4 {[%clk
01:40:56]} {[%emt 00:00:04]} 4. Nxd4 {[%clk 01:42:13]} {[%emt 00:00:04]} Nf6
{[%clk 01:41:21]} {[%emt 00:00:05]} 5. Nc3 {[%clk 01:42:40]} {[%emt 00:00:03]}
a6 {[%clk 01:41:48]} {[%emt 00:00:04]} 6. Bg5 {[%clk 01:42:53]} {[%emt
00:00:17]} e6 {[%clk 01:41:59]} {[%emt 00:00:19]} 7. f4 {[%clk 01:42:44]}
{[%emt 00:00:38]} h6 {[%clk 01:42:17]} {[%emt 00:00:12]} 8. Bh4 {[%clk
01:42:44]} {[%emt 00:00:29]} Qb6 {[%clk 01:42:40]} {[%emt 00:00:09]} 9. a3
{[%clk 01:42:30]} {[%emt 00:00:44]} Be7 {[%clk 01:42:53]} {[%emt 00:00:16]} 10.
Bf2 {[%clk 01:42:48]} {[%emt 00:00:12]} Qc7 {[%clk 01:43:19]} {[%emt 00:00:04]}
11. Qf3 {[%clk 01:40:44]} {[%emt 00:02:34]} Nbd7 {[%clk 01:43:35]} {[%emt
00:00:14]} 12. O-O-O {[%clk 01:40:02]} {[%emt 00:01:13]} b5 {[%clk 01:43:18]}
{[%emt 00:00:47]} 13. g4 {[%clk 01:38:03]} {[%emt 00:02:29]} Bb7 {[%clk
01:43:33]} {[%emt 00:00:15]} 14. h4 {[%clk 01:35:07]} {[%emt 00:03:25]} Nc5
{[%clk 01:43:15]} {[%emt 00:00:48]} 15. Bd3 {[%clk 01:30:55]} {[%emt 00:04:42]}
d5 {[%clk 01:43:14]} {[%emt 00:00:32]} 16. e5 {[%clk 01:18:50]} {[%emt
00:12:34]} Nfe4 {[%clk 01:42:41]} {[%emt 00:01:03]} 17. Bxe4 {[%clk 01:10:39]}
{[%emt 00:08:42]} Nxe4 {[%clk 01:42:50]} {[%emt 00:00:21]} 18. Nxe4 {[%clk
01:08:49]} {[%emt 00:02:20]} dxe4 {[%clk 01:43:15]} {[%emt 00:00:05]} 19. Qe3
{[%clk 01:06:48]} {[%emt 00:02:30]} Rc8 {[%clk 01:40:02]} {[%emt 00:03:44]} 20.
Rh2 {[%clk 00:58:15]} {[%emt 00:09:02]} Bd5 {[%clk 01:33:30]} {[%emt 00:07:03]}
21. Qe2 {[%clk 00:51:25]} {[%emt 00:07:20]} b4 {[%clk 01:14:43]} {[%emt
00:19:17]} 22. axb4 {[%clk 00:34:01]} {[%emt 00:17:53]} Bxb4 {[%clk 01:14:17]}
{[%emt 00:00:56]} 23. c3 {[%clk 00:33:11]} {[%emt 00:01:21]} Bxc3 {[%clk
01:11:53]} {[%emt 00:02:55]} 24. bxc3 {[%clk 00:32:54]} {[%emt 00:00:45]} Qxc3+
{[%clk 01:12:12]} {[%emt 00:00:12]} 25. Nc2 {[%clk 00:32:58]} {[%emt 00:00:25]}
Qa1+ {[%clk 01:12:25]} {[%emt 00:00:17]} 26. Kd2 {[%clk 00:33:24]} {[%emt
00:00:05]} Rxc2+ {[%clk 01:12:49]} {[%emt 00:00:06]} 27. Kxc2 {[%clk 00:33:50]}
{[%emt 00:00:03]} Qa2+ {[%clk 01:13:14]} {[%emt 00:00:06]} 28. Kc1 {[%clk
00:34:10]} {[%emt 00:00:09]} Qxe2 {[%clk 01:13:37]} {[%emt 00:00:08]} 29. Bg1
{[%clk 00:34:07]} {[%emt 00:00:33]} Qxg4 {[%clk 01:13:41]} {[%emt 00:00:26]}
0-1

[Event "Masters Tournament (MTO)"]
[Site "Biel, Switzerland"]
[Date "2026.07.21"]
[Round "8.24"]
[White "Tkhoruk, Roman"]
[Black "Ivana Maria, Furtado"]
[Result "1/2-1/2"]
[TimeControl "100+30+30sec/move"]
[WhiteTitle "-"]
[BlackTitle "-"]
[WhiteFideId "34161589"]
[BlackFideId "5048400"]
[WhiteElo "1967"]
[BlackElo "2182"]

1. e4 {[%clk 01:40:46]} {[%emt 00:00:14]} e6 {[%clk 01:40:33]} {[%emt
00:00:28]} 2. d4 {[%clk 01:40:55]} {[%emt 00:00:20]} d5 {[%clk 01:40:58]}
{[%emt 00:00:06]} 3. exd5 {[%clk 01:41:12]} {[%emt 00:00:13]} exd5 {[%clk
01:41:21]} {[%emt 00:00:06]} 4. Bd3 {[%clk 01:41:24]} {[%emt 00:00:19]} c5
{[%clk 01:41:00]} {[%emt 00:00:51]} 5. c3 {[%clk 01:40:32]} {[%emt 00:01:22]}
cxd4 {[%clk 01:34:05]} {[%emt 00:07:25]} 6. cxd4 {[%clk 01:39:29]} {[%emt
00:01:33]} Bb4+ {[%clk 01:34:22]} {[%emt 00:00:13]} 7. Bd2 {[%clk 01:28:50]}
{[%emt 00:11:10]} Qe7+ {[%clk 01:30:55]} {[%emt 00:03:56]} 8. Ne2 {[%clk
01:25:58]} {[%emt 00:03:21]} Nf6 {[%clk 01:28:05]} {[%emt 00:03:20]} 9. Bxb4
{[%clk 01:20:35]} {[%emt 00:05:53]} Qxb4+ {[%clk 01:28:18]} {[%emt 00:00:18]}
10. Qd2 {[%clk 01:20:53]} {[%emt 00:00:11]} Qxd2+ {[%clk 01:24:06]} {[%emt
00:04:42]} 11. Nxd2 {[%clk 01:18:04]} {[%emt 00:03:19]} Nc6 {[%clk 01:24:22]}
{[%emt 00:00:15]} 12. a3 {[%clk 01:13:22]} {[%emt 00:05:12]} O-O {[%clk
01:23:46]} {[%emt 00:01:05]} 13. h3 {[%clk 01:11:23]} {[%emt 00:02:29]} Re8
{[%clk 01:23:44]} {[%emt 00:00:33]} 14. O-O {[%clk 01:11:42]} {[%emt 00:00:10]}
Bf5 {[%clk 01:22:00]} {[%emt 00:02:14]} 15. Bb5 {[%clk 00:59:33]} {[%emt
00:12:39]} a6 {[%clk 01:15:26]} {[%emt 00:07:04]} 16. Ng3 {[%clk 00:58:44]}
{[%emt 00:01:19]} axb5 {[%clk 01:02:21]} {[%emt 00:13:36]} 17. Nxf5 {[%clk
00:57:19]} {[%emt 00:01:55]} g6 {[%clk 01:02:22]} {[%emt 00:00:28]} 18. Nd6
{[%clk 00:55:19]} {[%emt 00:02:30]} Re2 {[%clk 01:02:17]} {[%emt 00:00:35]} 19.
Nf3 {[%clk 00:46:11]} {[%emt 00:09:38]} Rxb2 {[%clk 01:02:08]} {[%emt
00:00:40]} 20. Rab1 {[%clk 00:37:46]} {[%emt 00:08:55]} Rxb1 {[%clk 00:55:05]}
{[%emt 00:07:32]} 21. Rxb1 {[%clk 00:37:32]} {[%emt 00:00:44]} Ne4 {[%clk
00:45:54]} {[%emt 00:09:41]} 22. Nxb7 {[%clk 00:21:03]} {[%emt 00:17:00]} Nc3
{[%clk 00:42:16]} {[%emt 00:04:08]} 23. Rb3 {[%clk 00:21:21]} {[%emt 00:00:11]}
Ne2+ {[%clk 00:38:47]} {[%emt 00:03:59]} 24. Kf1 {[%clk 00:21:23]} {[%emt
00:00:28]} Nexd4 {[%clk 00:38:47]} {[%emt 00:00:30]} 25. Nxd4 {[%clk 00:21:44]}
{[%emt 00:00:09]} Nxd4 {[%clk 00:39:14]} {[%emt 00:00:03]} 26. Rb4 {[%clk
00:21:05]} {[%emt 00:01:10]} Nc2 {[%clk 00:29:58]} {[%emt 00:09:46]} 27. Rxb5
{[%clk 00:20:00]} {[%emt 00:01:35]} Re8 {[%clk 00:28:28]} {[%emt 00:01:59]} 28.
f3 {[%clk 00:11:34]} {[%emt 00:08:56]} d4 {[%clk 00:28:13]} {[%emt 00:00:46]}
29. Rb3 {[%clk 00:10:44]} {[%emt 00:01:20]} f5 {[%clk 00:20:04]} {[%emt
00:08:39]} 30. f4 {[%clk 00:04:49]} {[%emt 00:06:25]} Re1+ {[%clk 00:17:20]}
{[%emt 00:03:13]} 31. Kf2 {[%clk 00:05:13]} {[%emt 00:00:07]} Ra1 {[%clk
00:16:40]} {[%emt 00:01:09]} 32. Rd3 {[%clk 00:04:33]} {[%emt 00:01:10]} Rxa3
{[%clk 00:09:00]} {[%emt 00:08:09]} 33. Rxa3 {[%clk 00:04:26]} {[%emt
00:00:38]} Nxa3 {[%clk 00:09:26]} {[%emt 00:00:04]} 34. Ke2 {[%clk 00:04:23]}
{[%emt 00:00:33]} Nc2 {[%clk 00:09:16]} {[%emt 00:00:40]} 35. g3 {[%clk
00:03:45]} {[%emt 00:01:08]} h5 {[%clk 00:05:47]} {[%emt 00:03:59]} 36. Kd3
{[%clk 00:02:20]} {[%emt 00:01:55]} Ne3 {[%clk 00:06:05]} {[%emt 00:00:12]} 37.
Kxd4 {[%clk 00:01:55]} {[%emt 00:00:55]} Nf1 {[%clk 00:06:29]} {[%emt
00:00:07]} 38. h4 {[%clk 00:00:53]} {[%emt 00:01:32]} Nxg3 {[%clk 00:06:50]}
{[%emt 00:00:09]} 39. Nc5 {[%clk 00:01:19]} {[%emt 00:00:04]} Kf7 {[%clk
00:05:20]} {[%emt 00:01:59]} 40. Ke3 {[%clk 00:01:13]} {[%emt 00:00:36]} Ne4
{[%clk 00:04:10]} {[%emt 00:01:40]} 41. Nxe4 {[%clk 00:28:37]} {[%emt
00:03:06]} fxe4 {[%clk 00:34:16]} {[%emt 00:00:24]} 42. Kxe4 {[%clk 00:29:00]}
{[%emt 00:00:06]} Kf6 {[%clk 00:32:14]} {[%emt 00:02:32]} 43. Ke3 {[%clk
00:29:21]} {[%emt 00:00:10]} Ke6 {[%clk 00:31:32]} {[%emt 00:01:12]} 44. Ke4
{[%clk 00:29:45]} {[%emt 00:00:06]} Kf6 {[%clk 00:30:46]} {[%emt 00:01:16]} 45.
Ke3 {[%clk 00:30:09]} {[%emt 00:00:06]} Ke7 {[%clk 00:31:04]} {[%emt 00:00:12]}
46. Ke4 {[%clk 00:30:22]} {[%emt 00:00:17]} Ke6 {[%clk 00:31:25]} {[%emt
00:00:09]} 47. Ke3 {[%clk 00:30:47]} {[%emt 00:00:04]} Kd5 {[%clk 00:31:27]}
{[%emt 00:00:28]} 48. Kd3 {[%clk 00:31:09]} {[%emt 00:00:09]} Kd6 {[%clk
00:30:49]} {[%emt 00:01:08]} 49. Kd4 {[%clk 00:31:34]} {[%emt 00:00:06]} Ke6
{[%clk 00:31:12]} {[%emt 00:00:07]} 50. Ke4 {[%clk 00:31:59]} {[%emt 00:00:05]}
Kf6 {[%clk 00:31:37]} {[%emt 00:00:04]} 51. Ke3 {[%clk 00:32:22]} {[%emt
00:00:07]} 1/2-1/2

[Event "Masters Tournament (MTO)"]
[Site "Biel, Switzerland"]
[Date "2026.07.21"]
[Round "8.25"]
[White "Kudryavtsev, Eugene"]
[Black "Aryan, Goyal"]
[Result "0-1"]
[TimeControl "100+30+30sec/move"]
[WhiteTitle "-"]
[BlackTitle "-"]
[WhiteFideId "1315374"]
[BlackFideId "366108825"]
[WhiteElo "2146"]
[BlackElo "2029"]

1. e4 {[%clk 01:40:57]} {[%emt 00:00:02]} e5 {[%clk 01:40:41]} {[%emt
00:00:20]} 2. Nf3 {[%clk 01:41:22]} {[%emt 00:00:04]} Nc6 {[%clk 01:41:04]}
{[%emt 00:00:07]} 3. Bb5 {[%clk 01:41:46]} {[%emt 00:00:06]} a6 {[%clk
01:41:28]} {[%emt 00:00:06]} 4. Ba4 {[%clk 01:42:11]} {[%emt 00:00:05]} Nf6
{[%clk 01:41:54]} {[%emt 00:00:04]} 5. O-O {[%clk 01:42:35]} {[%emt 00:00:07]}
Nxe4 {[%clk 01:42:15]} {[%emt 00:00:09]} 6. d4 {[%clk 01:42:56]} {[%emt
00:00:08]} b5 {[%clk 01:42:40]} {[%emt 00:00:05]} 7. Bb3 {[%clk 01:43:22]}
{[%emt 00:00:05]} d5 {[%clk 01:43:04]} {[%emt 00:00:05]} 8. dxe5 {[%clk
01:43:46]} {[%emt 00:00:06]} Be6 {[%clk 01:43:27]} {[%emt 00:00:07]} 9. c3
{[%emt 00:00:52]} Bc5 {[%clk 01:43:08]} {[%emt 00:00:03]} 10. Nbd2 {[%clk
01:44:33]} {[%emt 00:00:07]} O-O {[%clk 01:43:30]} {[%emt 00:00:08]} 11. Bc2
{[%clk 01:45:01]} {[%emt 00:00:04]} Nxf2 {[%clk 01:43:01]} {[%emt 00:00:58]} 12.
Rxf2 {[%clk 01:45:25]} {[%emt 00:00:06]} f6 {[%clk 01:43:21]} {[%emt 00:00:09]}
13. Nf1 {[%clk 01:45:51]} {[%emt 00:00:04]} Bxf2+ {[%clk 01:43:29]} {[%emt
00:00:23]} 14. Kxf2 {[%clk 01:46:16]} {[%emt 00:00:05]} fxe5 {[%clk 01:43:46]}
{[%emt 00:00:13]} 15. Kg1 {[%clk 01:46:40]} {[%emt 00:00:06]} Bg4 {[%clk
01:42:27]} {[%emt 00:01:48]} 16. Ne3 {[%clk 01:47:04]} {[%emt 00:00:07]} Be6
{[%clk 01:42:30]} {[%emt 00:00:26]} 17. b3 {[%clk 01:47:27]} {[%emt 00:00:08]}
d4 {[%clk 01:40:14]} {[%emt 00:02:46]} 18. cxd4 {[%clk 01:47:47]} {[%emt
00:00:10]} Nxd4 {[%clk 01:40:10]} {[%emt 00:00:33]} 19. Be4 {[%clk 01:48:08]}
{[%emt 00:00:10]} Rc8 {[%clk 01:38:32]} {[%emt 00:02:08]} 20. Qe1 {[%clk
01:38:12]} {[%emt 00:10:26]} Rf4 {[%clk 01:25:54]} {[%emt 00:13:08]} 21. Nf1
{[%clk 01:36:02]} {[%emt 00:02:40]} Rf8 {[%clk 01:07:27]} {[%emt 00:18:57]} 22.
Be3 {[%clk 00:54:37]} {[%emt 00:41:55]} Qf6 {[%clk 00:50:59]} {[%emt 00:16:57]}
23. Ng3 {[%clk 00:46:21]} {[%emt 00:08:47]} Bf7 {[%clk 00:29:09]} {[%emt
00:22:19]} 24. Rd1 {[%clk 00:27:31]} {[%emt 00:19:20]} c5 {[%clk 00:28:30]}
{[%emt 00:01:09]} 25. Nxe5 {[%clk 00:26:07]} {[%emt 00:01:54]} Ne2+ {[%clk
00:23:12]} {[%emt 00:05:48]} 26. Qxe2 {[%clk 00:24:37]} {[%emt 00:02:00]} Qxe5
{[%clk 00:23:25]} {[%emt 00:00:17]} 27. Bd4 {[%clk 00:08:01]} {[%emt 00:17:07]}
Qg5 {[%clk 00:21:40]} {[%emt 00:02:14]} 28. Be3 {[%clk 00:05:38]} {[%emt
00:02:53]} Qe5 {[%clk 00:21:25]} {[%emt 00:00:45]} 29. Qg4 {[%clk 00:04:15]}
{[%emt 00:01:53]} Bg6 {[%clk 00:18:37]} {[%emt 00:03:19]} 30. Bd5+ {[%clk
00:04:23]} {[%emt 00:00:22]} Kh8 {[%clk 00:18:38]} {[%emt 00:00:28]} 31. Qg5
{[%clk 00:02:13]} {[%emt 00:02:41]} Rce8 {[%clk 00:16:16]} {[%emt 00:02:52]} 32.
Nf1 {[%clk 00:01:44]} {[%emt 00:00:59]} Qxg5 {[%clk 00:08:45]} {[%emt
00:08:00]} 33. Bxg5 {[%clk 00:02:11]} {[%emt 00:00:03]} Re5 {[%clk 00:08:30]}
{[%emt 00:00:45]} 34. Be3 {[%clk 00:01:03]} {[%emt 00:01:38]} Rd8 {[%clk
00:06:08]} {[%emt 00:02:53]} 35. Bf3 {[%clk 00:01:26]} {[%emt 00:00:07]} Rxd1
{[%clk 00:06:30]} {[%emt 00:00:08]} 36. Bxd1 {[%clk 00:01:51]} {[%emt
00:00:05]} c4 {[%clk 00:06:42]} {[%emt 00:00:17]} 37. Bf3 {[%clk 00:00:34]}
{[%emt 00:01:47]} c3 {[%clk 00:06:13]} {[%emt 00:01:00]} 38. Kf2 {[%clk
00:00:51]} {[%emt 00:00:13]} b4 {[%clk 00:04:11]} {[%emt 00:02:33]} 39. Bd4
{[%clk 00:00:35]} {[%emt 00:00:45]} Ra5 {[%clk 00:04:32]} {[%emt 00:00:08]} 40.
Ke1 {[%clk 00:00:35]} {[%emt 00:00:31]} Rxa2 {[%clk 00:04:35]} {[%emt
00:00:27]} 41. Ne3 {[%clk 00:26:52]} {[%emt 00:04:13]} Rb2 {[%clk 00:30:18]}
{[%emt 00:04:46]} 42. Bd1 {[%clk 00:26:13]} {[%emt 00:01:10]} a5 {[%clk
00:28:45]} {[%emt 00:02:03]} 43. h4 {[%clk 00:25:12]} {[%emt 00:01:31]} Bd3
{[%clk 00:26:51]} {[%emt 00:02:24]} 44. h5 {[%clk 00:23:21]} {[%emt 00:02:21]}
Rb1 {[%clk 00:26:06]} {[%emt 00:01:13]} 45. h6 {[%clk 00:22:40]} {[%emt
00:01:13]} c2 {[%clk 00:26:02]} {[%emt 00:00:33]} 46. hxg7+ {[%clk 00:22:56]}
{[%emt 00:00:15]} Kg8 {[%clk 00:26:28]} {[%emt 00:00:04]} 0-1